[Event "44th Chess Olympiad Women 2022"]
[Site "Chennai"]
[Date "2022.08.08"]
[Round "10.5"]
[White "Yip, Carissa"]
[Black "Mariroh, Fariha"]
[Result "1-0"]
[WhiteElo "2416"]
[BlackElo "1839"]
[Annotator "RC"]
[PlyCount "65"]
[EventDate "2022.??.??"]
[TimeControl "60"]

1. e4 {[%emt 0:00:05]} c5 {[%emt 0:00:08]} 2. Nf3 {[%emt 0:00:04]} Nc6 {
[%emt 0:00:08]} 3. d4 {[%emt 0:00:03]} cxd4 {[%emt 0:00:07]} 4. Nxd4 {[%emt 0:
00:00]} g6 {[%emt 0:00:21]} 5. Be3 {[%emt 0:00:41]} Bg7 {[%emt 0:00:49]} 6. c4
{[%emt 0:00:40]} Nf6 {[%emt 0:01:25]} 7. Nc3 {[%emt 0:00:03]} O-O {[%emt 0:00:
00]} 8. Be2 {[%emt 0:00:40]} d6 {[%emt 0:00:32]} 9. O-O {[%emt 0:01:01]} Bd7 {
[%emt 0:02:50]} 10. Nc2 {[%emt 0:02:29]} Qc8 {[%emt 0:09:26]} 11. f3 {[%emt 0:
00:00]} Ne5 {[%emt 0:08:55]} 12. b3 {[%emt 0:04:25]} Bc6 {[%emt 0:01:42]} 13.
Rc1 {[%emt 0:02:12]} Rd8 {[%emt 0:06:52]} 14. Nd5 {[%emt 0:08:14]} Re8 {
[%emt 0:30:22]} 15. Qd2 {[%emt 0:03:01]} e6 {[%emt 0:01:53]} 16. Nxf6+ {
[%emt 0:03:39]} Bxf6 {[%emt 0:00:06]} 17. Qxd6 {[%emt 0:00:09]} Rd8 {[%emt 0:
00:00]} 18. Qa3 {[%emt 0:00:16]} Qc7 {[%emt 0:03:05]} 19. Rcd1 {[%emt 0:01:15]}
b6 {[%emt 0:05:57]} 20. Nd4 {[%emt 0:07:23]} Be8 {[%emt 0:02:56]} 21. f4 {
[%emt 0:01:30]} Be7 {[%emt 0:01:34]} 22. Qc1 {[%emt 0:00:36]} Nc6 {[%emt 0:00:
00]} 23. Nb5 {[%emt 0:00:05]} Qb7 {[%emt 0:01:12]} 24. e5 {[%emt 0:00:30]} a6 {
[%emt 0:02:54]} 25. Nd6 {[%emt 0:00:36]} Bxd6 {[%emt 0:00:14]} 26. exd6 {
[%emt 0:00:04]} Nb8 {[%emt 0:06:44]} 27. Qc3 {[%emt 0:03:49]} Bc6 {[%emt 0:00:
00]} 28. f5 {[%emt 0:01:08]} e5 {[%emt 0:04:59]} 29. fxg6 {[%emt 0:01:06]} hxg6
{[%emt 0:00:56]} 30. Bh6 {[%emt 0:04:57]} Nd7 {[%emt 0:00:56]} 31. Qg3 {
[%emt 0:00:05]} Re8 {[%emt 0:02:55]} 32. Qg5 {[%emt 0:00:07]} Nf8 {[%emt 0:00:
00]} 33. Qf6 {[%emt 0:00:25]} 1-0

[Event "44th Chess Olympiad Women 2022"]
[Site "Chennai"]
[Date "2022.08.08"]
[Round "10.6"]
[White "Divya Deshmukh"]
[Black "Lanchava, Tea"]
[Result "1-0"]
[WhiteElo "2319"]
[BlackElo "2257"]
[Annotator "RC"]
[PlyCount "107"]
[EventDate "2022.??.??"]
[TimeControl "60"]

1. e4 {[%emt 0:00:03]} g6 {[%emt 0:00:14]} 2. d4 {[%emt 0:00:03]} Bg7 {[%emt 0:
00:00]} 3. Nf3 {[%emt 0:00:06]} d6 {[%emt 0:00:07]} 4. h3 {[%emt 0:00:22]} Nd7
{[%emt 0:03:26]} 5. Bd3 {[%emt 0:01:12]} e5 {[%emt 0:04:14]} 6. c3 {[%emt 0:00:
00]} Nh6 {[%emt 0:02:26]} 7. Be3 {[%emt 0:07:07]} f6 {[%emt 0:00:44]} 8. dxe5 {
[%emt 0:06:42]} dxe5 {[%emt 0:01:21]} 9. Qb3 {[%emt 0:00:40]} Qe7 {[%emt 0:00:
00]} 10. Na3 {[%emt 0:05:03]} a6 {[%emt 0:01:18]} 11. Nc2 {[%emt 0:08:02]} Nf7
{[%emt 0:04:33]} 12. Nb4 {[%emt 0:04:12]} c6 {[%emt 0:05:31]} 13. a4 {[%emt 0:
00:00]} O-O {[%emt 0:09:17]} 14. a5 {[%emt 0:00:57]} Kh8 {[%emt 0:00:38]} 15.
O-O {[%emt 0:02:59]} Nc5 {[%emt 0:06:28]} 16. Qa2 {[%emt 0:13:16]} f5 {[%emt 0:
00:00]} 17. Nxc6 {[%emt 0:05:00]} Qd6 {[%emt 0:12:58]} 18. Bxc5 {[%emt 0:17:08]
} Qxc5 {[%emt 0:00:10]} 19. Nb4 {[%emt 0:00:11]} fxe4 {[%emt 0:04:08]} 20. Bxe4
{[%emt 0:00:15]} Nd6 {[%emt 0:00:40]} 21. Qd5 {[%emt 0:02:18]} Nxe4 {[%emt 0:
00:00]} 22. Qxe4 {[%emt 0:01:27]} Qb5 {[%emt 0:06:36]} 23. Rfe1 {[%emt 0:02:29]
} Bf5 {[%emt 0:01:06]} 24. Qe2 {[%emt 0:01:20]} Qxe2 {[%emt 0:06:39]} 25. Rxe2
{[%emt 0:00:44]} Bxh3 {[%emt 0:00:11]} 26. Nxe5 {[%emt 0:00:24]} Bf5 {[%emt 0:
00:00]} 27. Nc4 {[%emt 0:01:24]} Rfd8 {[%emt 0:05:46]} 28. Nb6 {[%emt 0:01:19]}
Rab8 {[%emt 0:00:18]} 29. N4d5 {[%emt 0:01:08]} Bf8 {[%emt 0:00:28]} 30. Rae1 {
[%emt 0:01:16]} Bd6 {[%emt 0:02:36]} 31. Nf6 {[%emt 0:00:51]} Bc5 {[%emt 0:00:
00]} 32. Re5 {[%emt 0:06:28]} Bd6 {[%emt 0:03:34]} 33. R5e2 {[%emt 0:01:27]}
Bc5 {[%emt 0:00:06]} 34. b4 {[%emt 0:02:34]} Bxb6 {[%emt 0:02:04]} 35. Re7 {
[%emt 0:01:00]} g5 {[%emt 0:00:07]} 36. axb6 {[%emt 0:00:07]} Rd6 {[%emt 0:00:
00]} 37. Ne8 {[%emt 0:00:05]} Rg6 {[%emt 0:01:46]} 38. Rf7 {[%emt 0:00:22]} Bc2
{[%emt 0:01:02]} 39. Ree7 {[%emt 0:00:21]} Bb3 {[%emt 0:01:55]} 40. Rf6 {
[%emt 0:04:44]} Rg8 {[%emt 0:00:42]} 41. Nd6 {[%emt 0:03:16]} Rg7 {[%emt 0:00:
00]} 42. Rc7 {[%emt 0:03:00]} g4 {[%emt 0:05:50]} 43. c4 {[%emt 0:04:11]} g3 {
[%emt 0:04:13]} 44. fxg3 {[%emt 0:01:33]} Rxg3 {[%emt 0:00:51]} 45. Nf5 {
[%emt 0:02:48]} Rg5 {[%emt 0:00:49]} 46. Rff7 {[%emt 0:00:18]} Rh5 {[%emt 0:00:
00]} 47. Nd4 {[%emt 0:01:22]} Ba2 {[%emt 0:00:39]} 48. Rxb7 {[%emt 0:00:32]}
Rg8 {[%emt 0:02:37]} 49. Rbc7 {[%emt 0:00:46]} Bb1 {[%emt 0:00:51]} 50. b7 {
[%emt 0:03:50]} Rhg5 {[%emt 0:01:33]} 51. Rc8 {[%emt 0:00:25]} Rxg2+ {[%emt 0:
00:00]} 52. Kf1 {[%emt 0:00:02]} Bd3+ {[%emt 0:02:14]} 53. Ke1 {[%emt 0:00:03]}
Bxc4 {[%emt 0:00:41]} 54. b8=Q {[%emt 0:00:16]} 1-0

[Event "44th Chess Olympiad Women 2022"]
[Site "Chennai"]
[Date "2022.08.08"]
[Round "10.6"]
[White "Padmini, Rout"]
[Black "Van Foreest, Machteld"]
[Result "1-0"]
[WhiteElo "2374"]
[BlackElo "2299"]
[Annotator "RC"]
[PlyCount "75"]
[EventDate "2022.??.??"]
[TimeControl "60"]

1. Nf3 {[%emt 0:00:07]} d5 {[%emt 0:00:22]} 2. g3 {[%emt 0:00:06]} Nf6 {
[%emt 0:00:13]} 3. Bg2 {[%emt 0:00:16]} c5 {[%emt 0:00:16]} 4. O-O {[%emt 0:00:
00]} Nc6 {[%emt 0:00:15]} 5. d4 {[%emt 0:00:18]} e6 {[%emt 0:00:17]} 6. c4 {
[%emt 0:00:21]} dxc4 {[%emt 0:00:21]} 7. dxc5 {[%emt 0:02:31]} Qd5 {[%emt 0:00:
00]} 8. Qd2 Qxd2 {[%emt 0:00:30]} 9. Re1 {[%emt 0:00:26]} Qd1 10. Rxd1 {
[%emt 0:01:01]} Bxc5 {[%emt 0:06:49]} 11. Nbd2 {[%emt 0:01:08]} O-O {[%emt 0:
00:00]} 12. Nxc4 {[%emt 0:01:12]} Ng4 {[%emt 0:06:50]} 13. e3 {[%emt 0:07:46]}
Rb8 {[%emt 0:08:52]} 14. Bd2 {[%emt 0:05:26]} b6 {[%emt 0:11:32]} 15. a3 {
[%emt 0:07:42]} Ba6 {[%emt 0:03:35]} 16. Rdc1 {[%emt 0:05:21]} Rbc8 {[%emt 0:
00:00]} 17. h3 {[%emt 0:03:04]} Bxc4 {[%emt 0:01:51]} 18. Rxc4 {[%emt 0:01:55]}
Nge5 {[%emt 0:01:07]} 19. Rc2 {[%emt 0:01:16]} Nxf3+ {[%emt 0:04:48]} 20. Bxf3
{[%emt 0:00:22]} Ne5 {[%emt 0:01:06]} 21. Be2 {[%emt 0:01:05]} Bd6 {[%emt 0:00:
00]} 22. Rac1 {[%emt 0:00:36]} Rcd8 {[%emt 0:01:04]} 23. Kg2 {[%emt 0:02:30]}
Nd7 {[%emt 0:03:08]} 24. b4 {[%emt 0:04:21]} e5 {[%emt 0:01:24]} 25. e4 {
[%emt 0:05:03]} h6 {[%emt 0:02:30]} 26. a4 {[%emt 0:01:19]} Nf6 {[%emt 0:01:51]
} 27. f3 {[%emt 0:03:25]} Nd7 {[%emt 0:00:17]} 28. Be1 {[%emt 0:02:06]} Nf6 {
[%emt 0:02:04]} 29. a5 {[%emt 0:01:54]} bxa5 {[%emt 0:02:18]} 30. bxa5 {
[%emt 0:00:06]} Rd7 {[%emt 0:00:33]} 31. a6 {[%emt 0:02:40]} Ne8 {[%emt 0:00:
00]} 32. Bf2 {[%emt 0:02:27]} Nc7 {[%emt 0:00:31]} 33. Rd1 {[%emt 0:01:55]} Ne6
{[%emt 0:00:44]} 34. Rcd2 {[%emt 0:00:47]} Nd4 {[%emt 0:00:31]} 35. Bxd4 {
[%emt 0:00:19]} Bb4 {[%emt 0:00:35]} 36. Bc3 {[%emt 0:00:31]} Rxd2 {[%emt 0:00:
00]} 37. Bxd2 {[%emt 0:00:04]} Bxd2 {[%emt 0:00:35]} 38. Rxd2 {[%emt 0:00:05]}
1-0

[Event "44th Chess Olympiad Women 2022"]
[Site "Chennai"]
[Date "2022.08.08"]
[Round "10.6"]
[White "Peng, Zhaoqin"]
[Black "Vantika Agrawal"]
[Result "1-0"]
[WhiteElo "2349"]
[BlackElo "2371"]
[Annotator "RC"]
[PlyCount "117"]
[EventDate "2022.??.??"]
[TimeControl "60"]

1. d4 {[%emt 0:00:12]} Nf6 {[%emt 0:00:55]} 2. c4 {[%emt 0:00:05]} g6 {[%emt 0:
00:00]} 3. Nc3 {[%emt 0:00:04]} Bg7 {[%emt 0:00:02]} 4. e4 {[%emt 0:00:06]} d6
{[%emt 0:00:18]} 5. Be2 {[%emt 0:00:06]} O-O {[%emt 0:00:05]} 6. Be3 {[%emt 0:
00:00]} Nc6 {[%emt 0:00:39]} 7. d5 {[%emt 0:00:30]} Ne5 {[%emt 0:00:54]} 8. h3
{[%emt 0:00:05]} e6 {[%emt 0:22:20]} 9. Nf3 {[%emt 0:01:07]} Nxf3+ {[%emt 0:00:
00]} 10. Bxf3 {[%emt 0:00:03]} Nd7 {[%emt 0:01:01]} 11. Rc1 {[%emt 0:03:37]} f5
{[%emt 0:15:03]} 12. dxe6 {[%emt 0:32:54]} Ne5 {[%emt 0:00:40]} 13. Be2 {
[%emt 0:00:12]} Bxe6 {[%emt 0:04:53]} 14. exf5 {[%emt 0:02:19]} gxf5 {[%emt 0:
00:00]} 15. Nd5 {[%emt 0:02:55]} Ng6 {[%emt 0:02:07]} 16. Qd2 {[%emt 0:02:47]}
f4 {[%emt 0:04:26]} 17. Nxf4 {[%emt 0:14:52]} Nxf4 {[%emt 0:00:58]} 18. Bxf4 {
[%emt 0:00:03]} Qf6 {[%emt 0:02:07]} 19. Be3 {[%emt 0:00:10]} Qxb2 {[%emt 0:00:
00]} 20. Qxb2 {[%emt 0:10:14]} Bxb2 {[%emt 0:00:55]} 21. Rc2 {[%emt 0:00:05]}
Bg7 {[%emt 0:08:24]} 22. Bg4 {[%emt 0:08:53]} Bf7 {[%emt 0:07:50]} 23. O-O {
[%emt 0:00:58]} c6 {[%emt 0:00:38]} 24. f4 {[%emt 0:08:42]} d5 {[%emt 0:01:35]}
25. cxd5 {[%emt 0:03:33]} Bxd5 {[%emt 0:00:30]} 26. Bf3 {[%emt 0:00:13]} Rfd8 {
[%emt 0:04:29]} 27. f5 {[%emt 0:01:39]} Bxf3 {[%emt 0:01:24]} 28. Rxf3 {
[%emt 0:00:02]} Bd4 {[%emt 0:04:51]} 29. g4 {[%emt 0:01:03]} Kf7 {[%emt 0:00:
00]} 30. Kf2 {[%emt 0:01:50]} Rd7 {[%emt 0:01:35]} 31. Bxd4 {[%emt 0:03:12]}
Rxd4 {[%emt 0:00:04]} 32. Rb3 {[%emt 0:00:03]} Rd7 {[%emt 0:00:28]} 33. Re2 {
[%emt 0:00:40]} Re8 {[%emt 0:00:37]} 34. Rxe8 {[%emt 0:00:19]} Kxe8 {[%emt 0:
00:00]} 35. Ke3 {[%emt 0:00:07]} c5 {[%emt 0:00:37]} 36. g5 {[%emt 0:01:04]} c4
{[%emt 0:02:34]} 37. Rb4 {[%emt 0:02:07]} Rc7 {[%emt 0:00:29]} 38. Kd2 {
[%emt 0:00:06]} b6 {[%emt 0:01:13]} 39. a4 {[%emt 0:01:56]} c3+ {[%emt 0:00:31]
} 40. Kc2 {[%emt 0:00:02]} Rc5 {[%emt 0:00:29]} 41. Rf4 {[%emt 0:31:15]} Kf7 {
[%emt 0:22:46]} 42. h4 {[%emt 0:00:00]} a6 {[%emt 0:04:06]} 43. f6 {[%emt 0:00:
00]} b5 {[%emt 0:00:39]} 44. a5 {[%emt 0:00:00]} Kf8 {[%emt 0:04:01]} 45. Rd4 {
[%emt 0:00:00]} Rc7 {[%emt 0:00:43]} 46. Rd8+ {[%emt 0:00:00]} Kf7 {[%emt 0:00:
00]} 47. Rh8 {[%emt 0:00:00]} Ke6 {[%emt 0:00:30]} 48. Ra8 {[%emt 0:00:00]} Kf5
{[%emt 0:01:11]} 49. Rxa6 {[%emt 0:00:00]} b4 {[%emt 0:00:33]} 50. Rb6 {
[%emt 0:00:00]} Ra7 {[%emt 0:00:22]} 51. Rxb4 {[%emt 0:00:00]} h6 {[%emt 0:00:
00]} 52. Rb5+ {[%emt 0:02:12]} Kg6 {[%emt 0:00:29]} 53. Kxc3 {[%emt 0:00:11]}
hxg5 {[%emt 0:00:33]} 54. hxg5 {[%emt 0:00:05]} Rc7+ {[%emt 0:00:20]} 55. Kb4 {
[%emt 0:00:30]} Rc1 {[%emt 0:00:39]} 56. a6 {[%emt 0:00:38]} Rb1+ {[%emt 0:00:
00]} 57. Ka5 {[%emt 0:01:08]} Ra1+ {[%emt 0:00:43]} 58. Kb6 {[%emt 0:00:06]}
Rd1 {[%emt 0:00:30]} 59. a7 {[%emt 0:00:27]} 1-0

[Event "44th Chess Olympiad Women 2022"]
[Site "Chennai"]
[Date "2022.08.08"]
[Round "10.6"]
[White "Ratsma, Rosa"]
[Black "Gomes, Mary Ann"]
[Result "0-1"]
[WhiteElo "2226"]
[BlackElo "2324"]
[Annotator "RC"]
[PlyCount "86"]
[EventDate "2022.??.??"]
[TimeControl "60"]

1. e4 {[%emt 0:00:04]} c5 {[%emt 0:00:22]} 2. Nf3 {[%emt 0:00:13]} e6 {[%emt 0:
00:00]} 3. d4 {[%emt 0:00:13]} cxd4 {[%emt 0:00:07]} 4. Nxd4 {[%emt 0:00:07]}
a6 {[%emt 0:00:05]} 5. Bd3 {[%emt 0:00:52]} Qc7 {[%emt 0:00:14]} 6. O-O {
[%emt 0:00:35]} Nf6 {[%emt 0:00:11]} 7. Qe2 {[%emt 0:00:47]} d6 {[%emt 0:00:09]
} 8. f4 {[%emt 0:00:54]} Nbd7 {[%emt 0:02:59]} 9. c4 {[%emt 0:01:07]} Be7 {
[%emt 0:00:06]} 10. Nc3 {[%emt 0:00:55]} O-O {[%emt 0:03:00]} 11. Kh1 {[%emt 0:
00:00]} b6 {[%emt 0:01:07]} 12. b4 {[%emt 0:02:10]} Bb7 {[%emt 0:09:51]} 13.
Bb2 {[%emt 0:00:41]} Rfe8 {[%emt 0:05:07]} 14. Rac1 {[%emt 0:02:46]} Rac8 {
[%emt 0:01:15]} 15. a3 {[%emt 0:12:24]} Qb8 {[%emt 0:01:19]} 16. g4 {[%emt 0:
00:00]} Nf8 {[%emt 0:14:03]} 17. g5 {[%emt 0:06:17]} N6d7 {[%emt 0:00:06]} 18.
h4 {[%emt 0:06:32]} f6 {[%emt 0:13:34]} 19. Qf2 {[%emt 0:08:49]} Qa8 {[%emt 0:
00:00]} 20. Kg1 {[%emt 0:03:15]} Bd8 {[%emt 0:02:09]} 21. Rce1 {[%emt 0:04:44]}
b5 {[%emt 0:13:37]} 22. cxb5 {[%emt 0:02:44]} e5 {[%emt 0:00:32]} 23. fxe5 {
[%emt 0:04:36]} dxe5 {[%emt 0:11:13]} 24. Nf5 {[%emt 0:00:50]} Bb6 {[%emt 0:00:
00]} 25. Ne3 {[%emt 0:00:41]} axb5 {[%emt 0:02:12]} 26. Kh2 {[%emt 0:07:36]}
Bc6 {[%emt 0:05:37]} 27. gxf6 {[%emt 0:04:41]} Nxf6 {[%emt 0:00:17]} 28. Qg2 {
[%emt 0:00:25]} Kh8 {[%emt 0:05:36]} 29. Nf5 {[%emt 0:02:56]} Ng6 {[%emt 0:00:
00]} 30. Nd6 {[%emt 0:02:54]} Rc7 {[%emt 0:01:19]} 31. Nxe8 {[%emt 0:05:05]}
Qxe8 {[%emt 0:01:46]} 32. Nd5 {[%emt 0:02:23]} Bxd5 {[%emt 0:00:30]} 33. exd5 {
[%emt 0:00:08]} Qd7 {[%emt 0:01:21]} 34. Bxg6 {[%emt 0:03:28]} hxg6 {[%emt 0:
00:00]} 35. d6 {[%emt 0:00:38]} Rc4 {[%emt 0:00:24]} 36. Rf3 {[%emt 0:01:04]}
Rxh4+ {[%emt 0:01:37]} 37. Rh3 {[%emt 0:00:13]} Ng4+ {[%emt 0:00:05]} 38. Kg3 {
[%emt 0:01:06]} Bf2+ {[%emt 0:00:07]} 39. Kf3 {[%emt 0:00:33]} Qf5+ {[%emt 0:
00:00]} 40. Ke2 {[%emt 0:00:09]} Bxe1 {[%emt 0:00:28]} 41. Rxh4+ {[%emt 0:00:
00]} Bxh4 {[%emt 0:00:12]} 42. Qh3 {[%emt 0:00:38]} Qc2+ {[%emt 0:00:35]} 43.
Kf3 {[%emt 0:00:19]} Nh2+ {[%emt 0:00:09]} 0-1

[Event "44th Chess Olympiad Women 2022"]
[Site "Chennai"]
[Date "2022.08.08"]
[Round "10.7"]
[White "Arribas Robaina, Maritza"]
[Black "Hagarova, Zuzana"]
[Result "1-0"]
[WhiteElo "2239"]
[BlackElo "2293"]
[Annotator "RC"]
[PlyCount "111"]
[EventDate "2022.??.??"]
[TimeControl "60"]

1. e4 {[%emt 0:00:03]} c5 {[%emt 0:00:11]} 2. Nc3 {[%emt 0:00:06]} Nc6 {
[%emt 0:01:54]} 3. g3 {[%emt 0:03:11]} g6 {[%emt 0:01:05]} 4. Bg2 {[%emt 0:00:
00]} Bg7 {[%emt 0:01:03]} 5. Nge2 {[%emt 0:00:17]} d6 {[%emt 0:02:17]} 6. d3 {
[%emt 0:01:45]} e6 {[%emt 0:05:47]} 7. Be3 {[%emt 0:01:46]} Nd4 {[%emt 0:01:17]
} 8. O-O {[%emt 0:02:59]} Ne7 {[%emt 0:01:25]} 9. Qd2 {[%emt 0:02:40]} O-O {
[%emt 0:04:13]} 10. Rae1 {[%emt 0:03:36]} Rb8 {[%emt 0:11:56]} 11. Nd1 {
[%emt 0:09:23]} Nxe2+ {[%emt 0:10:11]} 12. Rxe2 {[%emt 0:01:16]} Nc6 {[%emt 0:
00:00]} 13. c3 {[%emt 0:01:44]} Qa5 {[%emt 0:05:17]} 14. a3 {[%emt 0:01:23]} b5
{[%emt 0:13:08]} 15. f4 {[%emt 0:04:25]} Ne7 {[%emt 0:04:06]} 16. f5 {[%emt 0:
00:00]} exf5 {[%emt 0:03:16]} 17. Bg5 {[%emt 0:03:11]} f6 {[%emt 0:04:17]} 18.
Bf4 {[%emt 0:03:33]} Qd8 {[%emt 0:01:23]} 19. d4 {[%emt 0:05:38]} c4 {[%emt 0:
00:00]} 20. Nf2 {[%emt 0:02:29]} g5 {[%emt 0:02:22]} 21. Be3 {[%emt 0:00:36]}
d5 {[%emt 0:00:28]} 22. e5 {[%emt 0:11:19]} Ng6 {[%emt 0:01:18]} 23. Nd1 {
[%emt 0:04:07]} Rb7 {[%emt 0:07:50]} 24. Bf2 {[%emt 0:06:18]} f4 {[%emt 0:00:
00]} 25. e6 {[%emt 0:01:43]} Re7 {[%emt 0:00:54]} 26. Rfe1 {[%emt 0:00:27]} Qd6
{[%emt 0:00:47]} 27. gxf4 {[%emt 0:06:59]} Nxf4 {[%emt 0:01:10]} 28. Bg3 {
[%emt 0:00:08]} Rxe6 {[%emt 0:06:21]} 29. Rxe6 {[%emt 0:02:21]} Bxe6 {[%emt 0:
00:00]} 30. Bxf4 {[%emt 0:02:31]} gxf4 {[%emt 0:00:06]} 31. Qe2 {[%emt 0:00:48]
} Bf7 {[%emt 0:01:25]} 32. Qf3 {[%emt 0:00:19]} Rd8 {[%emt 0:00:59]} 33. Nf2 {
[%emt 0:00:25]} Bh6 {[%emt 0:01:57]} 34. h4 {[%emt 0:00:31]} Bg7 {[%emt 0:00:
00]} 35. Qg4 {[%emt 0:02:01]} Qd7 {[%emt 0:00:35]} 36. Qxf4 {[%emt 0:00:20]}
Re8 {[%emt 0:00:06]} 37. Rf1 {[%emt 0:01:34]} Re2 {[%emt 0:00:25]} 38. Ng4 {
[%emt 0:00:16]} Re6 {[%emt 0:00:53]} 39. Ne3 {[%emt 0:02:07]} Rxe3 {[%emt 0:00:
00]} 40. Qxe3 {[%emt 0:00:06]} Qg4 {[%emt 0:00:30]} 41. Qf4 {[%emt 0:30:29]}
Qe2 {[%emt 0:06:14]} 42. Qb8+ {[%emt 0:00:00]} Bf8 {[%emt 0:01:51]} 43. Qg3+ {
[%emt 0:00:00]} Bg7 {[%emt 0:00:40]} 44. Rxf6 {[%emt 0:00:00]} Qxb2 {[%emt 0:
00:00]} 45. Rd6 {[%emt 0:00:00]} h6 {[%emt 0:01:33]} 46. Bxd5 {[%emt 0:00:00]}
Qc1+ {[%emt 0:04:38]} 47. Kh2 {[%emt 0:00:00]} Bxd5 {[%emt 0:04:02]} 48. Rxd5 {
[%emt 0:00:00]} Qd2+ {[%emt 0:00:14]} 49. Kh3 {[%emt 0:00:00]} Qc1 {[%emt 0:00:
00]} 50. Qf3 {[%emt 0:00:00]} Qxa3 {[%emt 0:01:10]} 51. Rxb5 {[%emt 0:00:00]}
Qe7 {[%emt 0:00:29]} 52. Rb8+ {[%emt 0:00:00]} Bf8 {[%emt 0:00:19]} 53. Rb7 {
[%emt 0:00:00]} Qe8 {[%emt 0:00:42]} 54. Rxa7 {[%emt 0:00:00]} Be7 {[%emt 0:00:
00]} 55. Qd5+ {[%emt 0:00:00]} Kg7 {[%emt 0:00:22]} 56. Qe6 {[%emt 0:00:00]}
1-0

[Event "44th Chess Olympiad Women 2022"]
[Site "Chennai"]
[Date "2022.08.08"]
[Round "10.7"]
[White "Ordaz Valdes, Lisandra Teresa"]
[Black "Borosova, Zuzana"]
[Result "1/2-1/2"]
[WhiteElo "2367"]
[BlackElo "2277"]
[Annotator "RC"]
[PlyCount "134"]
[EventDate "2022.??.??"]
[TimeControl "60"]

1. d4 {[%emt 0:00:04]} d5 {[%emt 0:00:04]} 2. c4 {[%emt 0:00:06]} c6 {[%emt 0:
00:00]} 3. cxd5 {[%emt 0:00:09]} cxd5 {[%emt 0:00:07]} 4. Bg5 {[%emt 0:00:06]}
h6 {[%emt 0:07:48]} 5. Bh4 {[%emt 0:00:51]} Qb6 {[%emt 0:35:13]} 6. Nc3 {
[%emt 0:08:00]} e6 {[%emt 0:00:49]} 7. Qd2 {[%emt 0:01:19]} Be7 {[%emt 0:02:50]
} 8. Bxe7 {[%emt 0:00:37]} Nxe7 {[%emt 0:00:06]} 9. e3 {[%emt 0:00:03]} Nd7 {
[%emt 0:12:38]} 10. Nf3 {[%emt 0:04:25]} Nf6 {[%emt 0:01:23]} 11. Bd3 {[%emt 0:
00:00]} Nf5 {[%emt 0:09:48]} 12. Rc1 {[%emt 0:07:19]} Bd7 {[%emt 0:02:52]} 13.
Ne5 {[%emt 0:03:02]} Nd6 {[%emt 0:02:10]} 14. O-O {[%emt 0:11:53]} O-O {
[%emt 0:02:12]} 15. Rc2 {[%emt 0:10:31]} Rfc8 {[%emt 0:01:37]} 16. Rfc1 {
[%emt 0:05:17]} Be8 {[%emt 0:00:15]} 17. b3 {[%emt 0:04:19]} Qd8 {[%emt 0:00:
00]} 18. f3 {[%emt 0:02:39]} a6 {[%emt 0:04:14]} 19. Ne2 {[%emt 0:02:47]} Rxc2
{[%emt 0:00:00]} 20. Rxc2 {[%emt 0:01:45]} Rc8 {[%emt 0:01:47]} 21. Rxc8 {
[%emt 0:01:12]} Qxc8 {[%emt 0:00:13]} 22. Qb4 {[%emt 0:00:07]} Qc7 {[%emt 0:00:
00]} 23. Qc5 {[%emt 0:00:41]} Qd8 {[%emt 0:04:00]} 24. a4 {[%emt 0:02:54]} b6 {
[%emt 0:00:12]} 25. Qc3 {[%emt 0:01:41]} a5 {[%emt 0:00:23]} 26. Qc2 {[%emt 0:
00:00]} Qc8 {[%emt 0:00:46]} 27. Qxc8 {[%emt 0:02:21]} Nxc8 {[%emt 0:00:01]}
28. Nc3 {[%emt 0:00:10]} Kf8 {[%emt 0:01:12]} 29. e4 {[%emt 0:00:27]} Ke7 {
[%emt 0:00:21]} 30. Kf2 {[%emt 0:03:15]} Na7 {[%emt 0:01:04]} 31. Ke3 {[%emt 0:
00:00]} Nc6 {[%emt 0:01:47]} 32. Nxc6+ {[%emt 0:02:38]} Bxc6 {[%emt 0:00:01]}
33. e5 {[%emt 0:00:00]} Ne8 {[%emt 0:00:50]} 34. Bb5 {[%emt 0:00:15]} Kd7 {
[%emt 0:01:31]} 35. Bxc6+ {[%emt 0:00:13]} Kxc6 {[%emt 0:00:01]} 36. Nb5 {
[%emt 0:00:00]} Kd7 {[%emt 0:00:38]} 37. f4 {[%emt 0:00:37]} h5 {[%emt 0:00:42]
} 38. g3 {[%emt 0:00:08]} g6 {[%emt 0:00:46]} 39. h3 {[%emt 0:00:10]} Ke7 {
[%emt 0:00:33]} 40. g4 {[%emt 0:02:07]} hxg4 {[%emt 0:00:14]} 41. hxg4 {
[%emt 0:30:01]} Kd7 {[%emt 0:19:17]} 42. Kf3 {[%emt 0:00:00]} f6 {[%emt 0:00:
00]} 43. Kg3 {[%emt 0:00:00]} fxe5 {[%emt 0:04:50]} 44. dxe5 {[%emt 0:00:00]}
Nc7 {[%emt 0:00:23]} 45. Nd4 {[%emt 0:00:00]} Ke7 {[%emt 0:01:32]} 46. Kh4 {
[%emt 0:00:00]} Kf7 {[%emt 0:00:41]} 47. Kg5 {[%emt 0:00:00]} Na6 {[%emt 0:00:
00]} 48. f5 {[%emt 0:00:24]} gxf5 {[%emt 0:00:06]} 49. gxf5 {[%emt 0:00:04]}
Nc5 {[%emt 0:01:16]} 50. f6 {[%emt 0:01:56]} Nd3 {[%emt 0:01:35]} 51. Nc6 {
[%emt 0:01:31]} Nc5 {[%emt 0:00:06]} 52. Nd8+ {[%emt 0:02:29]} Kf8 {[%emt 0:00:
00]} 53. Kf4 {[%emt 0:04:24]} d4 {[%emt 0:00:14]} 54. Kf3 {[%emt 0:01:28]} Ke8
{[%emt 0:01:11]} 55. f7+ {[%emt 0:00:09]} Kf8 {[%emt 0:00:15]} 56. Ke2 {
[%emt 0:01:55]} d3+ {[%emt 0:00:22]} 57. Ke3 {[%emt 0:00:32]} Ke7 {[%emt 0:00:
00]} 58. Kd2 {[%emt 0:00:38]} Kf8 {[%emt 0:00:23]} 59. Kc3 {[%emt 0:00:49]} Ke7
{[%emt 0:00:03]} 60. Kd2 {[%emt 0:00:04]} Nxb3+ {[%emt 0:01:46]} 61. Kxd3 {
[%emt 0:00:07]} Nc5+ {[%emt 0:00:05]} 62. Kc4 {[%emt 0:00:48]} Nxa4 {[%emt 0:
00:00]} 63. Kb5 {[%emt 0:02:29]} Nc5 {[%emt 0:00:02]} 64. Kxb6 {[%emt 0:00:28]}
Nd7+ {[%emt 0:00:22]} 65. Kc7 {[%emt 0:00:04]} Nxe5 {[%emt 0:00:15]} 66. f8=Q+
{[%emt 0:01:01]} Kxf8 {[%emt 0:00:03]} 67. Nxe6+ {[%emt 0:00:05]} Ke7 {[%emt 0:
00:00]} 1/2-1/2